bitfinex/quotes_BTCUSD_20240617
["timestamp","ask_amount","ask_price","bid_price","bid_amount"]
[1718625341970,0.65231675,65799.0,65798.0,4.01785]
[1718625343431,0.34836175,65799.0,65798.0,4.01785]
[1718625343636,0.33096255,65799.0,65798.0,4.01785]
[1718625343851,0.33096255,65799.0,65798.0,4.85825]
[1718625343852,0.12898555,65799.0,65798.0,4.85825]
[1718625344062,0.05187268,65799.0,65798.0,4.92375]
[1718625344461,0.05187268,65799.0,65798.0,4.61979]
[1718625345090,0.05187268,65799.0,65798.0,4.31583]
[1718625345496,0.10890609,65799.0,65798.0,4.31583]
[1718625345958,0.05187268,65799.0,65798.0,4.31583]
[1718625346315,0.10890609,65799.0,65798.0,4.31583]
[1718625346679,0.05187268,65799.0,65798.0,4.31583]
[1718625346894,0.05187268,65799.0,65798.0,4.61979]
[1718625347104,0.00193501,65799.0,65798.0,4.61979]
[1718625347310,0.05187268,65799.0,65798.0,4.31583]
[1718625348530,0.05187268,65799.0,65798.0,4.61979]
[1718625349643,0.05187268,65799.0,65798.0,4.92375]
[1718625350275,0.05187268,65799.0,65798.0,5.04988785]
[1718625351562,0.05187268,65799.0,65798.0,4.74592785]
[1718625354569,0.05187268,65799.0,65798.0,4.74592903]
[1718625356026,0.05187268,65799.0,65798.0,5.04988903]
[1718625356654,0.05187268,65799.0,65798.0,4.68042903]
[1718625357301,0.00193501,65799.0,65798.0,5.13907762]
[1718625357510,0.00193501,65799.0,65798.0,5.22737762]
[1718625357720,0.00193501,65799.0,65798.0,5.53133762]
[1718625357936,0.00193501,65799.0,65798.0,5.22737762]
[1718625360099,0.00193501,65799.0,65798.0,5.10123859]
[1718625360311,0.00193501,65799.0,65798.0,5.22737562]
[1718625360778,0.00193501,65799.0,65798.0,5.53133562]
[1718625361242,0.00193501,65799.0,65798.0,5.63133562]
[1718625361667,0.00193501,65799.0,65798.0,5.63132228]
[1718625362093,0.00093501,65799.0,65798.0,5.61832228]
[1718625362362,0.00193501,65799.0,65798.0,5.63232228]
[1718625363043,0.00193501,65799.0,65798.0,5.62832228]
[1718625363268,0.00293501,65799.0,65798.0,5.63932228]
[1718625363698,0.00293501,65799.0,65798.0,5.71242228]
[1718625365450,0.00293501,65799.0,65798.0,5.33276148]
[1718625365678,0.00293501,65799.0,65798.0,5.40846228]
[1718625365897,0.00293501,65799.0,65798.0,5.71242228]
[1718625367351,0.00293501,65799.0,65798.0,5.40846228]
[1718625367779,0.00293501,65799.0,65798.0,5.71242228]
[1718625367981,0.00293501,65799.0,65798.0,5.40846228]
[1718625369320,0.00293501,65799.0,65798.0,5.71242228]
[1718625369549,0.00293501,65799.0,65798.0,5.40846228]
[1718625370588,0.00293501,65799.0,65798.0,5.71242228]
[1718625371227,0.00208501,65799.0,65798.0,5.71242228]
[1718625371657,0.00148501,65799.0,65798.0,5.71242228]
[1718625372057,0.0750289,65806.0,65805.0,0.151964]
[1718625372261,0.09525343,65806.0,65805.0,0.45317548]
[1718625372491,0.09493343,65806.0,65805.0,0.45317548]
[1718625372915,0.09393343,65806.0,65805.0,0.45317548]
[1718625373341,0.09393343,65806.0,65805.0,0.46417548]
[1718625373551,0.09268343,65806.0,65805.0,0.46617548]
[1718625373814,0.09268343,65806.0,65805.0,0.57384061]
[1718625374020,0.09206343,65806.0,65805.0,0.57384061]
[1718625376079,0.09206343,65806.0,65805.0,0.57644141]
[1718625377077,0.09206343,65806.0,65805.0,0.57384061]
[1718625377480,0.09206343,65806.0,65805.0,0.88036941]
[1718625378513,0.02022453,65806.0,65805.0,0.88036941]
[1718625378726,0.02022453,65806.0,65805.0,1.18429741]
[1718625379140,0.04993767,65807.0,65806.0,0.4584848]
[1718625379368,0.04993767,65807.0,65806.0,0.32963247]
[1718625379502,0.07014768,65807.0,65806.0,0.32963247]
[1718625379708,0.07014768,65807.0,65806.0,0.32703167]
[1718625380534,0.07014768,65807.0,65806.0,0.17507067]
[1718625381382,0.07014768,65807.0,65806.0,0.17607067]
[1718625381788,0.07014768,65807.0,65806.0,0.18607067]
[1718625382807,0.07014768,65807.0,65806.0,0.33803167]
[1718625386885,0.07014768,65807.0,65806.0,0.34063247]
[1718625387096,0.07014768,65807.0,65806.0,0.33803167]
[1718625387301,0.07014768,65807.0,65806.0,0.40109396]
[1718625390056,0.07014768,65807.0,65806.0,0.40369476]
[1718625390292,0.07014768,65807.0,65806.0,0.40109396]
[1718625390516,0.07014768,65807.0,65806.0,0.55318175]
[1718625390725,0.07014768,65807.0,65806.0,0.85970555]
[1718625390997,0.04993767,65807.0,65806.0,0.85970555]
[1718625391210,0.07013341,65807.0,65806.0,0.85970555]
[1718625391646,0.07013341,65807.0,65806.0,1.16362855]
[1718625392081,0.04993767,65807.0,65806.0,1.16362855]
[1718625392983,0.04993767,65807.0,65806.0,1.16102775]
[1718625393194,0.04993767,65807.0,65806.0,1.16362855]
[1718625393414,0.04993767,65807.0,65806.0,1.16362795]
[1718625393628,0.10697108,65808.0,65807.0,0.455878]
[1718625393833,0.35349241,65807.0,65806.0,0.03694698]
[1718625394061,1.10471117,65807.0,65806.0,0.20018777]
[1718625394279,1.12491826,65807.0,65806.0,0.20018777]
[1718625394494,1.12491826,65807.0,65806.0,0.19918777]
[1718625394716,0.80360006,65807.0,65806.0,0.19918777]
[1718625394934,0.80360006,65807.0,65806.0,0.21910655]
[1718625395145,1.10751906,65807.0,65806.0,0.21910655]
[1718625395352,0.80360006,65807.0,65806.0,0.20910655]
[1718625395944,0.72755617,65807.0,65806.0,0.20910655]
[1718625396574,0.72755617,65807.0,65806.0,0.21910655]
[1718625396786,0.74495537,65807.0,65806.0,0.21910655]
[1718625397008,1.04887437,65807.0,65806.0,0.21910655]
[1718625397225,1.04887437,65807.0,65806.0,0.15604396]
[1718625397845,1.04887437,65807.0,65806.0,0.15789396]
[1718625398060,1.04980938,65807.0,65806.0,0.15789396]
[1718625398874,1.08241018,65807.0,65806.0,0.13797518]
[1718625399720,1.08241018,65807.0,65806.0,0.20103908]
[1718625399934,1.09980938,65807.0,65806.0,0.20103908]
[1718625400298,1.09980938,65807.0,65806.0,0.13797518]
[1718625400505,1.09980938,65807.0,65806.0,0.13797841]
[1718625400905,1.09980938,65807.0,65806.0,0.15367034]
[1718625402206,1.09980938,65807.0,65806.0,0.02754193]
[1718625402459,1.09980938,65807.0,65806.0,0.13797853]
[1718625403522,1.47682838,65807.0,65806.0,0.01185]
[1718625403735,1.48682838,65807.0,65806.0,0.01185]
[1718625403971,2.10611536,65807.0,65806.0,0.01185]
[1718625404180,1.80219636,65807.0,65806.0,0.01185]
[1718625404602,2.10611536,65807.0,65806.0,0.01185]
[1718625405008,2.10611536,65807.0,65806.0,0.00185]
[1718625405238,2.10613055,65807.0,65806.0,0.00085]
[1718625405660,2.11813055,65807.0,65806.0,0.00185]
[1718625405871,1.80274738,65807.0,65806.0,0.00185]
[1718625417950,1.35432838,65807.0,65806.0,0.00185]
[1718625418117,1.50082838,65807.0,65806.0,0.00185]
[1718625418469,1.80474738,65807.0,65806.0,0.00185]
[1718625418670,1.50082838,65807.0,65806.0,0.00185]
[1718625419150,1.80474738,65807.0,65806.0,0.00185]
[1718625419356,1.50082838,65807.0,65806.0,0.00185]
[1718625420721,1.80474738,65807.0,65806.0,0.00185]
[1718625421847,2.12015147,65807.0,65806.0,0.00185]
[1718625422332,2.14393556,65807.0,65806.0,0.00185]
[1718625422996,2.07083556,65807.0,65806.0,0.00185]
[1718625423212,2.12015147,65807.0,65806.0,0.00185]
[1718625423640,1.80474738,65807.0,65806.0,0.00185]
[1718625424220,1.79474738,65807.0,65806.0,0.00185]
[1718625424729,1.80474738,65807.0,65806.0,0.00185]
[1718625424898,1.79474738,65807.0,65806.0,0.00185]
[1718625425108,1.80474738,65807.0,65806.0,0.00185]
[1718625427294,1.79474738,65807.0,65806.0,0.00185]
[1718625428010,1.80474738,65807.0,65806.0,0.00185]
[1718625429032,1.73164738,65807.0,65806.0,0.00185]
[1718625429249,2.12014058,65807.0,65806.0,0.00185]
[1718625433205,2.16695184,65807.0,65806.0,0.00185]
[1718625433610,2.15695184,65807.0,65806.0,0.00185]
[1718625434036,2.16695184,65807.0,65806.0,0.00185]
[1718625435244,2.09385184,65807.0,65806.0,0.00185]
[1718625435571,2.16695184,65807.0,65806.0,0.00185]
[1718625438633,2.08385184,65807.0,65806.0,0.00185]
[1718625439200,2.15695184,65807.0,65806.0,0.00185]
[1718625440016,2.16695184,65807.0,65806.0,0.00185]
[1718625443131,2.16783161,65807.0,65806.0,0.00185]
[1718625444803,2.21314756,65807.0,65806.0,0.00185]
[1718625445059,2.16783161,65807.0,65806.0,0.00185]
[1718625445268,2.21314756,65807.0,65806.0,0.00185]
[1718625445677,2.21239685,65807.0,65806.0,0.00185]
[1718625446363,2.1670809,65807.0,65806.0,0.00185]
[1718625448716,1.13827461,65799.0,65798.0,3.9977]
[1718625448953,1.23821228,65799.0,65798.0,3.9977]
[1718625449202,1.25819581,65799.0,65798.0,3.9977]
[1718625450173,1.25819581,65799.0,65798.0,4.0027]
[1718625450689,1.56215081,65799.0,65798.0,4.0027]
[1718625450925,1.26219581,65799.0,65798.0,4.0027]
[1718625451160,1.57760485,65799.0,65798.0,4.0027]
[1718625451621,1.26219581,65799.0,65798.0,4.0027]
[1718625459003,0.8838082,65799.0,65798.0,4.0027]
[1718625459207,0.63688661,65799.0,65798.0,4.1395]
[1718625459551,0.94084161,65799.0,65798.0,4.1395]
[1718625463411,0.94084161,65799.0,65798.0,4.14035]
[1718625463567,0.94177662,65799.0,65798.0,4.14035]
[1718625463769,0.63782162,65799.0,65798.0,4.14035]
[1718625464173,0.94177662,65799.0,65798.0,4.14035]
[1718625465678,0.95917582,65799.0,65798.0,4.00355]
[1718625468865,0.63782162,65799.0,65798.0,4.00355]
[1718625469198,0.95917582,65799.0,65798.0,4.00355]
[1718625470738,0.94177662,65799.0,65798.0,4.00355]
[1718625471146,0.95917582,65799.0,65798.0,4.00355]
[1718625471849,0.94177662,65799.0,65798.0,4.00355]
[1718625471993,0.95917582,65799.0,65798.0,4.00355]
[1718625472198,0.95917582,65799.0,65798.0,4.00347457]
[1718625474887,0.94177662,65799.0,65798.0,4.00347457]
[1718625475298,0.58078821,65799.0,65798.0,4.00347457]
[1718625475508,0.27683321,65799.0,65798.0,4.00347457]
[1718625475716,0.58078821,65799.0,65798.0,4.00347457]
[1718625475917,0.63782162,65799.0,65798.0,4.00347457]
[1718625476344,0.94177662,65799.0,65798.0,4.00347457]
[1718625476767,0.88474321,65799.0,65798.0,4.00347457]
[1718625476977,0.94177662,65799.0,65798.0,4.00347457]
[1718625477609,0.27683321,65799.0,65798.0,4.14047457]
[1718625478037,0.27683321,65799.0,65798.0,4.26662239]
[1718625479751,0.12485621,65799.0,65798.0,4.26662239]
[1718625480164,0.10487268,65799.0,65798.0,4.26662239]
[1718625482320,0.10487268,65799.0,65798.0,4.41860239]
[1718625482904,0.00493501,65799.0,65798.0,4.57069018]
[1718625483179,0.00493501,65799.0,65798.0,5.64433996]
[1718625483646,0.00493501,65799.0,65798.0,5.38598001]
[1718625484029,0.00493501,65799.0,65798.0,5.68994001]
[1718625484241,0.00093501,65799.0,65798.0,5.38598001]
[1718625484589,0.00193501,65799.0,65798.0,5.34837996]
[1718625485607,0.00193501,65799.0,65798.0,5.34337996]
[1718625486003,0.00193501,65799.0,65798.0,5.35736006]
[1718625486423,0.00193501,65799.0,65798.0,5.34336006]
[1718625486834,0.00193501,65799.0,65798.0,5.35736008]
[1718625488161,0.00193501,65799.0,65798.0,5.66132008]
[1718625488362,0.00193501,65799.0,65798.0,5.35736008]
[1718625489173,0.00193501,65799.0,65798.0,5.66132008]
[1718625493976,0.00193501,65799.0,65798.0,5.6809014]
[1718625494132,0.00193501,65799.0,65798.0,5.7809014]
[1718625500475,0.00193501,65799.0,65798.0,5.4038414]
[1718625500686,0.00193501,65799.0,65798.0,5.4769414]
[1718625503466,0.00193501,65799.0,65798.0,5.47693774]
[1718625506476,0.00193501,65799.0,65798.0,5.78089774]
[1718625507448,0.00193501,65799.0,65798.0,5.80454642]
[1718625507836,0.00193501,65799.0,65798.0,5.74148078]
[1718625508036,0.00193501,65799.0,65798.0,5.80454309]
[1718625511559,0.00193501,65799.0,65798.0,5.80454319]
[1718625512541,0.00193501,65799.0,65798.0,5.80454083]
[1718625513277,0.00193501,65799.0,65798.0,5.43928264]
[1718625520390,0.00193501,65799.0,65798.0,5.48476993]
[1718625520590,0.00193501,65799.0,65798.0,5.78872993]
[1718625521200,0.00193501,65799.0,65798.0,5.74324264]
[1718625521406,0.00193501,65799.0,65798.0,6.35476923]
[1718625521648,0.00093501,65807.0,65806.0,1.25579739]
[1718625521921,0.00093501,65807.0,65806.0,1.90790818]
[1718625522076,0.00093501,65807.0,65806.0,2.22811389]
[1718625522422,0.00093501,65807.0,65806.0,2.35424027]
[1718625522630,0.00093501,65807.0,65806.0,2.38120896]
[1718625522969,0.00093501,65807.0,65806.0,2.46804482]
[1718625523172,0.00093501,65807.0,65806.0,2.58974482]
[1718625523377,0.05703341,65827.0,65825.0,0.759587]
[1718625523378,0.19017268,65826.0,65825.0,0.759587]
[1718625523580,0.19017268,65826.0,65825.0,0.93467479]
[1718625523779,0.20435301,65826.0,65825.0,0.32700479]
[1718625523983,0.19017268,65826.0,65825.0,0.70149575]
[1718625524215,0.20435301,65826.0,65825.0,0.70149575]
[1718625524420,0.19017268,65826.0,65825.0,0.70149575]
[1718625524827,0.20435301,65826.0,65825.0,0.70149575]
[1718625525024,0.20435301,65826.0,65825.0,0.70449575]
[1718625525864,0.20435301,65826.0,65825.0,0.71749575]
[1718625526364,0.20435301,65826.0,65825.0,0.41366075]
[1718625527227,1.39219362,65826.0,65825.0,0.08665596]
[1718625527431,1.39219362,65826.0,65825.0,0.016]
[1718625527630,1.07096342,65826.0,65825.0,0.016]
[1718625527834,0.76713242,65826.0,65825.0,0.016]
[1718625528326,0.76713242,65826.0,65825.0,0.0327926]
[1718625528537,0.78453162,65826.0,65825.0,0.0327926]
[1718625528736,0.76713242,65826.0,65825.0,0.0327926]
[1718625529131,0.71009901,65826.0,65825.0,0.0327926]
[1718625529393,0.40626801,65826.0,65825.0,0.0327926]
[1718625532860,0.46330142,65826.0,65825.0,0.0327926]
[1718625533069,0.40626801,65826.0,65825.0,0.0327926]
[1718625534710,0.20435301,65826.0,65825.0,0.4885446]
[1718625535499,0.20435301,65826.0,65825.0,0.1847096]
[1718625535672,0.20385301,65826.0,65825.0,0.1847096]
[1718625536107,0.06455301,65826.0,65825.0,0.64323319]
[1718625536314,0.06455301,65826.0,65825.0,0.66363239]
[1718625536519,0.06455301,65826.0,65825.0,0.35979739]
[1718625536955,0.42080142,65826.0,65825.0,0.20788039]
[1718625537185,0.21185301,65826.0,65825.0,0.20788039]
[1718625537564,0.36376801,65826.0,65825.0,0.20788039]
[1718625537746,0.21185301,65826.0,65825.0,0.20788039]
[1718625538994,0.36376801,65826.0,65825.0,0.20788039]
[1718625539518,0.21185301,65826.0,65825.0,0.20788039]
[1718625539724,0.21185301,65826.0,65825.0,0.35979739]
[1718625539918,0.21185301,65826.0,65825.0,0.20788039]
[1718625540551,0.36376801,65826.0,65825.0,0.20788039]
[1718625541530,0.21185301,65826.0,65825.0,0.20788039]
[1718625542786,0.21185301,65826.0,65825.0,0.66363239]
[1718625542994,0.06455301,65826.0,65825.0,0.35979739]
[1718625543225,0.05037268,65826.0,65825.0,0.36239819]
[1718625543438,0.06470929,65826.0,65825.0,0.66623319]
[1718625544079,0.06470929,65826.0,65825.0,0.20788039]
[1718625544763,0.06470929,65826.0,65825.0,0.36239819]
[1718625544980,0.06470929,65826.0,65825.0,0.34679739]
[1718625545179,0.06470929,65826.0,65825.0,0.36079739]
[1718625545351,0.06470929,65826.0,65825.0,0.36039819]
[1718625545575,0.06470929,65826.0,65825.0,0.35779739]
[1718625545758,0.06470929,65826.0,65825.0,0.36279739]
[1718625546353,0.06470929,65826.0,65825.0,0.21088039]
[1718625547393,0.06470929,65826.0,65825.0,0.36279739]
[1718625548431,0.01477162,65826.0,65825.0,0.97306819]
[1718625549252,0.01477162,65826.0,65825.0,1.0991534]
[1718625549461,0.06470929,65826.0,65825.0,0.7927176]
[1718625549981,0.06470929,65826.0,65825.0,0.7953184]
[1718625550610,0.06470929,65826.0,65825.0,0.85836108]
[1718625550791,0.05,65841.0,65830.0,0.0026008]
[1718625550993,0.05,65841.0,65840.0,0.528749]
[1718625550994,0.09993767,65841.0,65840.0,0.528749]
[1718625551199,0.09993767,65841.0,65840.0,0.0731]
[1718625551552,0.15697108,65841.0,65840.0,0.14285346]
[1718625552309,0.15697108,65841.0,65840.0,0.0167926]
[1718625552498,0.15797108,65841.0,65840.0,0.0167926]
[1718625553300,0.10093767,65841.0,65840.0,0.0167926]
[1718625553502,0.15797108,65841.0,65840.0,0.0167926]
[1718625553917,0.15697108,65841.0,65840.0,0.0167926]
[1718625554774,0.32625128,65841.0,65840.0,0.0167926]
[1718625554979,0.46825128,65841.0,65840.0,0.0167926]
[1718625555186,0.46825128,65841.0,65840.0,0.0267926]
[1718625555546,0.45085208,65841.0,65840.0,0.0267926]
[1718625556927,0.46825128,65841.0,65840.0,0.0267926]
[1718625557538,0.45085208,65841.0,65840.0,0.0267926]
[1718625557740,0.46825128,65841.0,65840.0,0.0267926]
[1718625558547,0.48021473,65841.0,65840.0,0.0267926]
[1718625558752,0.78397673,65841.0,65840.0,0.0267926]
[1718625558971,1.08773873,65841.0,65840.0,0.01]
[1718625559194,1.39150073,65841.0,65840.0,0.01]
[1718625560047,1.46460073,65841.0,65840.0,0.01]
[1718625561284,1.47553574,65841.0,65840.0,0.01]
[1718625562286,1.46553574,65841.0,65840.0,0.01]
[1718625563276,1.47553574,65841.0,65840.0,0.01]
[1718625565290,1.77929774,65841.0,65840.0,0.01]
[1718625565873,2.11773766,65841.0,65840.0,0.01]
[1718625566106,2.17572246,65841.0,65840.0,0.01]
[1718625566737,0.83400961,65826.0,65825.0,0.00085]
[1718625566939,0.83400961,65826.0,65825.0,0.15293779]
[1718625567099,0.83400961,65826.0,65825.0,0.20353157]
[1718625567452,0.84613965,65826.0,65825.0,0.02385]
[1718625567684,1.24990832,65826.0,65825.0,0.00085]
[1718625568240,1.24990832,65826.0,65825.0,0.01185]
[1718625568854,1.39150832,65826.0,65825.0,0.01185]
[1718625569014,1.46460832,65826.0,65825.0,0.02585]
[1718625569566,1.46460832,65826.0,65825.0,0.01185]
[1718625569777,1.46460832,65826.0,65825.0,0.01585]
[1718625570380,1.77843932,65826.0,65825.0,0.00485]
[1718625571433,1.77843932,65826.0,65825.0,0.00685]
[1718625571632,1.77843932,65826.0,65825.0,0.00485]
[1718625572046,1.78443932,65826.0,65825.0,0.00585]
[1718625576622,2.08827032,65826.0,65825.0,0.00585]
[1718625576827,1.78443932,65826.0,65825.0,0.00585]
[1718625577909,1.77843932,65826.0,65825.0,0.00085]
[1718625578117,1.77943932,65826.0,65825.0,0.00085]
[1718625578330,1.78843932,65826.0,65825.0,0.00185]
[1718625579688,1.77843932,65826.0,65825.0,0.00185]
[1718625579910,1.78843932,65826.0,65825.0,0.00185]
[1718625580125,1.70533932,65826.0,65825.0,0.00185]
[1718625580326,1.77843932,65826.0,65825.0,0.00185]
[1718625580528,1.78843932,65826.0,65825.0,0.00185]
[1718625582491,1.77843932,65826.0,65825.0,0.00185]
[1718625583306,1.78843932,65826.0,65825.0,0.00185]
[1718625593940,1.77843932,65826.0,65825.0,0.00185]
[1718625594145,1.78843932,65826.0,65825.0,0.00185]
[1718625594347,2.1037324,65826.0,65825.0,0.00185]
[1718625595202,2.12681639,65826.0,65825.0,0.00185]
[1718625596681,2.48547871,65826.0,65825.0,0.00185]
[1718625597108,2.7375665,65826.0,65825.0,0.00185]
[1718625597813,2.73645306,65826.0,65825.0,0.00185]
[1718625599853,3.04028406,65826.0,65825.0,0.00185]
[1718625600067,3.20460028,65826.0,65825.0,0.00185]
[1718625600490,3.20461204,65826.0,65825.0,0.00185]
[1718625600665,3.23152805,65826.0,65825.0,0.00185]
[1718625600921,3.25452541,65826.0,65825.0,0.00185]
[1718625601331,3.27710953,65826.0,65825.0,0.00185]
[1718625601547,3.21009513,65826.0,65825.0,0.00185]
[1718625601760,3.21009513,65826.0,65800.0,0.0659]
[1718625601761,0.11443261,65801.0,65800.0,0.0659]
[1718625601989,0.63030228,65799.0,65798.0,3.99847457]
[1718625602221,0.93425728,65799.0,65798.0,3.99847457]
[1718625602431,1.23821228,65799.0,65798.0,4.14187457]
[1718625603483,1.23821228,65799.0,65798.0,4.16487457]
[1718625604411,1.24021228,65799.0,65798.0,4.17887457]
[1718625606134,1.23921228,65799.0,65798.0,4.16487457]
[1718625607103,1.23821228,65799.0,65798.0,4.16487457]
[1718625607598,1.24421228,65799.0,65798.0,4.16487457]
[1718625607837,0.94025728,65799.0,65798.0,4.16787457]
[1718625609316,1.24421228,65799.0,65798.0,4.16787457]
[1718625610030,1.24421228,65799.0,65798.0,4.00147457]
[1718625612118,1.55816728,65799.0,65798.0,4.00147457]
[1718625612341,1.63726728,65799.0,65798.0,4.00147457]
[1718625613985,1.71036728,65799.0,65798.0,4.00147457]
[1718625615711,1.70036728,65799.0,65798.0,4.00147457]
[1718625615943,1.39641228,65799.0,65798.0,4.00147457]
[1718625616673,1.40641228,65799.0,65798.0,4.00147457]
[1718625617147,1.71036728,65799.0,65798.0,4.00147457]
[1718625618095,1.32331228,65799.0,65798.0,4.00147457]
[1718625618326,1.39641228,65799.0,65798.0,4.00147457]
[1718625619297,1.40641228,65799.0,65798.0,4.00147457]
[1718625620464,1.39641228,65799.0,65798.0,4.00147457]
[1718625620714,0.63630228,65799.0,65798.0,4.00147457]
[1718625620964,0.05593767,65799.0,65798.0,4.31705457]
[1718625621386,0.25791467,65799.0,65798.0,4.16507457]
[1718625621636,0.05593767,65799.0,65798.0,4.16507457]
[1718625621846,0.05593767,65799.0,65798.0,4.31705457]
[1718625622284,0.04993767,65799.0,65798.0,4.31405457]
[1718625622511,0.04993767,65799.0,65798.0,4.16207457]
[1718625622714,0.04993767,65803.0,65802.0,0.151971]
[1718625622921,0.04993767,65803.0,65802.0,0.320571]
[1718625623356,0.04993767,65805.0,65804.0,0.151966]
[1718625623581,0.10697108,65808.0,65807.0,0.234059]
[1718625623803,0.10697108,65808.0,65807.0,0.39867696]
[1718625624028,0.06763659,65808.0,65807.0,0.70259596]
[1718625624491,0.04993767,65808.0,65807.0,0.24671796]
[1718625624906,0.06763659,65808.0,65807.0,0.24671796]
[1718625625348,0.06763659,65808.0,65807.0,0.1688]
[1718625625349,0.12467,65808.0,65807.0,0.1688]
[1718625625562,0.35267089,65808.0,65807.0,0.1688]
[1718625626032,1.33181209,65808.0,65798.0,4.13927457]
[1718625626265,0.10703341,65804.0,65800.0,0.0026008]
[1718625626446,0.05703341,65802.0,65801.0,0.0784]
[1718625626720,0.05703341,65802.0,65801.0,0.1014]
[1718625626898,0.05703341,65802.0,65801.0,0.1665]
[1718625627359,0.05703341,65802.0,65801.0,0.15146263]
[1718625628207,0.06733687,65805.0,65803.0,0.0658]
[1718625628208,0.04993767,65805.0,65803.0,0.0658]
[1718625628429,0.04993767,65805.0,65804.0,0.65271205]
[1718625628639,0.04993767,65808.0,65807.0,0.5242788]
[1718625628904,0.04993767,65808.0,65807.0,0.94831203]
[1718625629115,0.06763659,65808.0,65807.0,0.18591423]
[1718625629343,0.18301497,65808.0,65807.0,0.18591423]
[1718625629547,0.20071389,65808.0,65807.0,0.0888]
[1718625629794,0.14368048,65808.0,65807.0,0.0888]
[1718625630473,0.14368048,65808.0,65807.0,0.1801]
[1718625631331,0.14368048,65808.0,65807.0,1.17565455]
[1718625631332,0.01769892,65808.0,65807.0,1.17565455]
[1718625631546,0.01769892,65808.0,65807.0,1.47957355]
[1718625631756,0.04993767,65809.0,65808.0,0.9019858]
[1718625631968,0.04993767,65813.0,65812.0,0.151947]
[1718625632201,0.04993767,65813.0,65812.0,0.174947]
[1718625632417,0.06763659,65813.0,65812.0,0.478842]
[1718625633044,0.06763659,65813.0,65812.0,0.554442]
[1718625633263,0.04993767,65813.0,65812.0,0.59421353]
[1718625633487,0.04993767,65813.0,65812.0,0.35091853]
[1718625633701,0.06763659,65813.0,65812.0,0.35091853]
[1718625634143,0.12467,65813.0,65812.0,0.1632]
[1718625634376,0.276615,65813.0,65812.0,0.1632]
[1718625634597,0.884397,65813.0,65812.0,0.1632]
[1718625634811,0.9017962,65813.0,65812.0,0.1632]
[1718625635036,0.9017962,65813.0,65812.0,0.027]
[1718625635037,0.1450692,65813.0,65812.0,0.027]
[1718625635266,0.12767,65813.0,65812.0,0.027]
[1718625635480,0.07063659,65813.0,65812.0,0.178947]
[1718625635694,0.07063659,65813.0,65812.0,0.027]
[1718625636341,0.07063659,65813.0,65812.0,0.178947]
[1718625636559,0.07063659,65813.0,65812.0,0.25697126]
[1718625637021,0.07063659,65813.0,65812.0,0.71295405]
[1718625637272,0.02069892,65813.0,65812.0,1.16044905]
[1718625637519,0.02069892,65813.0,65812.0,0.85655405]
[1718625637720,0.02069892,65813.0,65812.0,0.40071205]
[1718625637721,0.003,65813.0,65812.0,0.40071205]
[1718625637901,0.07904389,65813.0,65812.0,0.40071205]
[1718625638169,0.32312042,65813.0,65812.0,0.40071205]
[1718625638381,0.32012042,65813.0,65812.0,0.40071205]
[1718625638599,0.16817542,65813.0,65812.0,0.40271205]
[1718625638810,0.09374281,65813.0,65812.0,0.39871205]
[1718625639023,0.09374281,65813.0,65812.0,0.40871205]
[1718625639411,0.09374281,65813.0,65812.0,0.86455405]
[1718625639841,0.07604389,65813.0,65812.0,0.86455405]
[1718625640043,0.09374281,65813.0,65812.0,0.86455405]
[1718625640664,0.09374281,65813.0,65812.0,0.56065905]
[1718625640868,0.09374281,65813.0,65812.0,0.40871205]
[1718625642748,0.09374281,65813.0,65812.0,0.012]
[1718625642749,0.06769892,65813.0,65812.0,0.012]
[1718625642955,0.01769892,65813.0,65812.0,0.1536]
[1718625643197,0.01769892,65813.0,65812.0,0.305547]
[1718625643582,0.01769892,65813.0,65812.0,0.609442]
[1718625643796,0.01769892,65813.0,65812.0,0.305547]
[1718625644219,0.01769892,65813.0,65812.0,0.98763127]
[1718625644440,0.04993767,65815.0,65814.0,0.4584298]
[1718625644649,0.04993767,65815.0,65814.0,0.78181759]
[1718625644853,0.04993767,65817.0,65816.0,0.455815]
[1718625645060,0.04993767,65817.0,65816.0,0.32702579]
[1718625645261,0.06763659,65817.0,65816.0,0.32702579]
[1718625645541,0.06763659,65817.0,65816.0,0.17508779]
[1718625645759,0.06763659,65817.0,65816.0,0.23629347]
[1718625646560,0.06963659,65817.0,65816.0,0.23629347]
[1718625646772,0.06963659,65817.0,65816.0,0.24129347]
[1718625647333,0.06963659,65817.0,65816.0,0.39323147]
[1718625647558,0.06963659,65817.0,65816.0,0.69970927]
[1718625648221,0.06963659,65817.0,65816.0,1.00358627]
[1718625648442,0.002,65817.0,65816.0,0.69970927]
[1718625648660,0.05193767,65817.0,65816.0,0.69970927]
[1718625649088,0.06963659,65817.0,65816.0,0.69710847]
[1718625649336,0.06963659,65817.0,65816.0,1.00358627]
[1718625649588,0.06963659,65817.0,65816.0,0.69970927]
[1718625649769,0.05193767,65817.0,65816.0,0.69970927]
[1718625650064,0.01969892,65817.0,65816.0,0.69970927]
[1718625650438,0.01969892,65817.0,65816.0,0.82581095]
[1718625650673,0.002,65817.0,65816.0,1.12968795]
[1718625651117,0.05193767,65817.0,65816.0,1.12968795]
[1718625651519,0.05193767,65817.0,65816.0,1.12968775]
[1718625651943,0.002,65817.0,65816.0,1.12968775]
[1718625652794,0.05193767,65817.0,65816.0,0.82320995]
[1718625653239,0.06963659,65817.0,65816.0,0.82320995]
[1718625653476,0.06963659,65817.0,65816.0,0.30618927]
[1718625653898,0.06963659,65817.0,65816.0,0.45812727]
[1718625654331,0.06963659,65817.0,65816.0,0.76200427]
[1718625654537,0.01969892,65817.0,65816.0,0.53872727]
[1718625654749,0.06963659,65817.0,65816.0,0.45812727]
[1718625655003,0.06963659,65817.0,65816.0,0.76200427]
[1718625655915,0.06963659,65817.0,65816.0,0.45812727]
[1718625656325,0.06963659,65817.0,65816.0,0.30618927]
[1718625656550,0.12667,65817.0,65816.0,0.30618927]
[1718625657135,0.06963659,65817.0,65816.0,0.30618927]
[1718625657348,1.0932492,65817.0,65816.0,0.13110148]
[1718625657765,1.3971212,65817.0,65816.0,0.13110148]
[1718625658382,1.3971212,65817.0,65816.0,0.12363471]
[1718625658584,1.3971212,65817.0,65816.0,0.1187369]
[1718625658785,1.0932492,65817.0,65816.0,0.1187369]
[1718625658985,1.0912492,65817.0,65816.0,0.1187369]
[1718625659222,1.0942492,65817.0,65816.0,0.1187369]
[1718625659662,1.0912492,65817.0,65816.0,0.1187369]
[1718625659883,1.0912492,65817.0,65816.0,0.1227369]
[1718625660098,1.09918421,65817.0,65816.0,0.1227369]
[1718625660523,1.09918421,65817.0,65816.0,0.1187369]
[1718625661159,1.09918421,65817.0,65816.0,0.1197369]
[1718625661369,1.40305621,65817.0,65816.0,0.1197369]
[1718625662037,0.79531221,65817.0,65816.0,0.001]
[1718625662682,1.09918421,65817.0,65816.0,0.001]
[1718625663967,0.79531221,65817.0,65816.0,0.001]